[Event "Live Chess"]
[Site "Chess.com"]
[Date "2024.06.02"]
[Round "-"]
[White "silunn"]
[Black "JanMur7"]
[Result "0-1"]
[WhiteElo "2111"]
[BlackElo "2273"]
[TimeControl "300"]
[EndTime "1:19:50 PDT"]
[Termination "JanMur7 won by checkmate"]

1. e4 {[%clk 0:04:57.7]} 1... g6 {[%clk 0:04:58.1]} 2. d4 {[%clk 0:04:55.5]}
2... Bg7 {[%clk 0:04:56.7]} 3. Nc3 {[%clk 0:04:54.2]} 3... c5 {[%clk 0:04:56.2]}
4. Nf3 {[%clk 0:04:46.1]} 4... cxd4 {[%clk 0:04:54.4]} 5. Nxd4 {[%clk
0:04:44.9]} 5... Nc6 {[%clk 0:04:50.7]} 6. Be3 {[%clk 0:04:41]} 6... d6 {[%clk
0:04:48.1]} 7. Be2 {[%clk 0:04:38.1]} 7... Nf6 {[%clk 0:04:37.4]} 8. O-O {[%clk
0:04:36.6]} 8... O-O {[%clk 0:04:32.1]} 9. a4 {[%clk 0:04:28.9]} 9... h5 {[%clk
0:04:26.1]} 10. Nb3 {[%clk 0:04:25.9]} 10... Ng4 {[%clk 0:04:23.8]} 11. Bxg4
{[%clk 0:04:10]} 11... Bxg4 {[%clk 0:04:21.9]} 12. f3 {[%clk 0:04:09.1]} 12...
Be6 {[%clk 0:04:21.3]} 13. Nd4 {[%clk 0:03:59.1]} 13... Nxd4 {[%clk 0:04:18.9]}
14. Bxd4 {[%clk 0:03:58.1]} 14... Bxd4+ {[%clk 0:04:13.9]} 15. Qxd4 {[%clk
0:03:58]} 15... Qb6 {[%clk 0:04:13.5]} 16. Qxb6 {[%clk 0:03:41.1]} 16... axb6
{[%clk 0:04:13.4]} 17. Rfd1 {[%clk 0:03:38.2]} 17... Rfc8 {[%clk 0:04:10.9]} 18.
Rd2 {[%clk 0:03:33.6]} 18... Rc4 {[%clk 0:04:09.3]} 19. Rad1 {[%clk 0:03:04.2]}
19... Rb4 {[%clk 0:04:06.1]} 20. b3 {[%clk 0:02:59.3]} 20... Ra5 {[%clk
0:03:47.8]} 21. Na2 {[%clk 0:02:28.9]} 21... Rbxa4 {[%clk 0:03:43.2]} 22. bxa4
{[%clk 0:02:27.2]} 22... Bxa2 {[%clk 0:03:42.6]} 23. Rd4 {[%clk 0:02:24.6]}
23... b5 {[%clk 0:03:36.2]} 24. axb5 {[%clk 0:02:04.6]} 24... Rxb5 {[%clk
0:03:36.1]} 25. Kf2 {[%clk 0:01:59.4]} 25... Rc5 {[%clk 0:03:30.8]} 26. R1d2
{[%clk 0:01:55.7]} 26... Be6 {[%clk 0:03:23.4]} 27. Rb4 {[%clk 0:01:54.5]} 27...
b5 {[%clk 0:03:21.7]} 28. Ke3 {[%clk 0:01:50.9]} 28... Bc4 {[%clk 0:03:19.5]}
29. Rb2 {[%clk 0:01:45.4]} 29... Rc7 {[%clk 0:03:16.4]} 30. Rd1 {[%clk
0:01:41.9]} 30... Ra7 {[%clk 0:03:15.3]} 31. Rdb1 {[%clk 0:01:40.8]} 31... Ra3+
{[%clk 0:03:13.2]} 32. Kd4 {[%clk 0:01:39.1]} 32... e5# {[%clk 0:03:12]} 0-1

[Event "Live Chess"]
[Site "Chess.com"]
[Date "2024.06.02"]
[Round "-"]
[White "Isambard_Thomas"]
[Black "RichardABates"]
[Result "0-1"]
[WhiteElo "2156"]
[BlackElo "2373"]
[TimeControl "300"]
[EndTime "1:19:54 PDT"]
[Termination "RichardABates won by resignation"]

1. d4 {[%clk 0:04:59.6]} 1... Nf6 {[%clk 0:04:56.7]} 2. Nf3 {[%clk 0:04:57.7]}
2... g6 {[%clk 0:04:54.9]} 3. Bg5 {[%clk 0:04:57.3]} 3... Bg7 {[%clk 0:04:53.6]}
4. e3 {[%clk 0:04:56.9]} 4... O-O {[%clk 0:04:51.9]} 5. Bd3 {[%clk 0:04:56.4]}
5... d6 {[%clk 0:04:50.4]} 6. Nbd2 {[%clk 0:04:55.9]} 6... Nbd7 {[%clk
0:04:48.2]} 7. Qe2 {[%clk 0:04:55.4]} 7... e5 {[%clk 0:04:45.7]} 8. dxe5 {[%clk
0:04:54.1]} 8... dxe5 {[%clk 0:04:44.3]} 9. h4 {[%clk 0:04:52.7]} 9... h5 {[%clk
0:04:37.6]} 10. O-O-O {[%clk 0:04:49.8]} 10... Qe7 {[%clk 0:04:35.2]} 11. Ne4
{[%clk 0:04:35.4]} 11... a5 {[%clk 0:04:29]} 12. Kb1 {[%clk 0:04:34.3]} 12... a4
{[%clk 0:04:27.6]} 13. a3 {[%clk 0:04:27.9]} 13... Nc5 {[%clk 0:04:21.9]} 14.
Nxf6+ {[%clk 0:04:08.6]} 14... Bxf6 {[%clk 0:04:14.7]} 15. Bxf6 {[%clk
0:04:06.3]} 15... Qxf6 {[%clk 0:04:13.4]} 16. Ng5 {[%clk 0:03:56.2]} 16... c6
{[%clk 0:04:03.5]} 17. Bc4 {[%clk 0:03:49.8]} 17... b5 {[%clk 0:04:00.1]} 18.
Rd6 {[%clk 0:03:41.1]} 18... Qxd6 {[%clk 0:03:57.2]} 0-1

[Event "Live Chess"]
[Site "Chess.com"]
[Date "2024.06.02"]
[Round "-"]
[White "juniortay"]
[Black "KeithArkell"]
[Result "0-1"]
[WhiteElo "2377"]
[BlackElo "2405"]
[TimeControl "300"]
[EndTime "1:20:06 PDT"]
[Termination "KeithArkell won by resignation"]

1. e4 {[%clk 0:04:57.4]} 1... c6 {[%clk 0:04:59.4]} 2. Nf3 {[%clk 0:04:56.8]}
2... d5 {[%clk 0:04:58.8]} 3. exd5 {[%clk 0:04:56.7]} 3... cxd5 {[%clk
0:04:57.1]} 4. Ne5 {[%clk 0:04:56.4]} 4... Nf6 {[%clk 0:04:56.6]} 5. d4 {[%clk
0:04:56]} 5... Nc6 {[%clk 0:04:55.4]} 6. Bb5 {[%clk 0:04:55.6]} 6... Bd7 {[%clk
0:04:54.3]} 7. Nxd7 {[%clk 0:04:55.3]} 7... Qxd7 {[%clk 0:04:53.5]} 8. c3 {[%clk
0:04:55]} 8... e6 {[%clk 0:04:52.8]} 9. O-O {[%clk 0:04:53.8]} 9... Be7 {[%clk
0:04:52.1]} 10. Nd2 {[%clk 0:04:53]} 10... O-O {[%clk 0:04:51.2]} 11. Qe2 {[%clk
0:04:52.3]} 11... g6 {[%clk 0:04:43.7]} 12. f4 {[%clk 0:04:47.3]} 12... a6
{[%clk 0:04:41]} 13. Bd3 {[%clk 0:04:46.2]} 13... b5 {[%clk 0:04:40]} 14. a3
{[%clk 0:04:44.9]} 14... Rfe8 {[%clk 0:04:36.8]} 15. Nf3 {[%clk 0:04:43.6]}
15... Qc7 {[%clk 0:04:31.5]} 16. Ne5 {[%clk 0:04:42.6]} 16... Na5 {[%clk
0:04:29.9]} 17. Bd2 {[%clk 0:04:29.5]} 17... Nc4 {[%clk 0:04:29]} 18. Rae1
{[%clk 0:04:27.7]} 18... Nxb2 {[%clk 0:04:26]} 19. Nxf7 {[%clk 0:04:19.9]} 19...
Kxf7 {[%clk 0:04:25]} 20. Qxe6+ {[%clk 0:04:18.9]} 20... Kg7 {[%clk 0:04:24.4]}
21. f5 {[%clk 0:03:40.6]} 21... Bd6 {[%clk 0:04:23.5]} 22. fxg6 {[%clk
0:03:30.8]} 22... Rxe6 {[%clk 0:04:21.3]} 23. Rxe6 {[%clk 0:03:30.6]} 23... Nxd3
{[%clk 0:04:14.9]} 24. Rfxf6 {[%clk 0:03:23.3]} 24... Bxh2+ {[%clk 0:03:53.8]}
25. Kh1 {[%clk 0:03:18.4]} 25... Bf4 {[%clk 0:03:11.7]} 0-1

[Event "Live Chess"]
[Site "Chess.com"]
[Date "2024.06.02"]
[Round "-"]
[White "NottheBishopSacrifice"]
[Black "chessgoatpawel"]
[Result "1/2-1/2"]
[WhiteElo "2305"]
[BlackElo "2068"]
[TimeControl "300"]
[EndTime "1:21:06 PDT"]
[Termination "Game drawn - insufficient material"]

1. g3 {[%clk 0:04:58.7]} 1... g6 {[%clk 0:04:58.7]} 2. Bg2 {[%clk 0:04:57.9]}
2... Bg7 {[%clk 0:04:57.5]} 3. Nf3 {[%clk 0:04:56.4]} 3... Nf6 {[%clk
0:04:56.7]} 4. O-O {[%clk 0:04:55.6]} 4... O-O {[%clk 0:04:56.4]} 5. d4 {[%clk
0:04:54.3]} 5... d5 {[%clk 0:04:52.5]} 6. b4 {[%clk 0:04:53.1]} 6... Nc6 {[%clk
0:04:48.2]} 7. b5 {[%clk 0:04:50.9]} 7... Nb8 {[%clk 0:04:45.6]} 8. a4 {[%clk
0:04:49.8]} 8... c6 {[%clk 0:04:43.6]} 9. Ba3 {[%clk 0:04:47]} 9... Re8 {[%clk
0:04:40.3]} 10. Nbd2 {[%clk 0:04:45]} 10... a6 {[%clk 0:04:36.4]} 11. bxc6
{[%clk 0:04:42]} 11... Nxc6 {[%clk 0:04:34.8]} 12. Rb1 {[%clk 0:04:39.7]} 12...
Qa5 {[%clk 0:04:27.9]} 13. c4 {[%clk 0:04:36.8]} 13... Qc3 {[%clk 0:04:10.8]}
14. Bb2 {[%clk 0:04:32.3]} 14... Qa5 {[%clk 0:04:08.6]} 15. cxd5 {[%clk
0:04:31.2]} 15... Nxd5 {[%clk 0:04:08.4]} 16. Nc4 {[%clk 0:04:29.6]} 16... Qb4
{[%clk 0:03:58.5]} 17. Qc2 {[%clk 0:04:18.9]} 17... Bf5 {[%clk 0:03:45.5]} 18.
e4 {[%clk 0:04:17.6]} 18... Bxe4 {[%clk 0:03:38.2]} 19. Qxe4 {[%clk 0:04:17.5]}
19... Qxc4 {[%clk 0:03:36.9]} 20. Nd2 {[%clk 0:03:55.3]} 20... Qb4 {[%clk
0:02:51]} 21. Bc1 {[%clk 0:03:29.9]} 21... Nc3 {[%clk 0:02:47.8]} 22. Qxc6
{[%clk 0:03:19.4]} 22... Nxb1 {[%clk 0:02:36.4]} 23. Qxb7 {[%clk 0:03:03.7]}
23... Qxb7 {[%clk 0:02:24]} 24. Bxb7 {[%clk 0:03:03.6]} 24... Rab8 {[%clk
0:02:22.2]} 25. Bxa6 {[%clk 0:03:02.1]} 25... Nxd2 {[%clk 0:02:18.9]} 26. Bxd2
{[%clk 0:02:59.6]} 26... Bxd4 {[%clk 0:02:18.5]} 27. Bb5 {[%clk 0:02:58.6]}
27... Red8 {[%clk 0:02:15.7]} 28. Bb4 {[%clk 0:02:58]} 28... e6 {[%clk
0:02:08.6]} 29. Rc1 {[%clk 0:02:55.1]} 29... Rdc8 {[%clk 0:02:01.7]} 30. Rd1
{[%clk 0:02:53.9]} 30... Rd8 {[%clk 0:01:59.4]} 31. Kg2 {[%clk 0:02:52.6]} 31...
Bg7 {[%clk 0:01:51.3]} 32. Rc1 {[%clk 0:02:49.5]} 32... Rbc8 {[%clk 0:01:49.6]}
33. Rb1 {[%clk 0:02:48.3]} 33... Rc2 {[%clk 0:01:46.7]} 34. a5 {[%clk 0:02:45]}
34... Rb2 {[%clk 0:01:32.9]} 35. Rxb2 {[%clk 0:02:42.5]} 35... Bxb2 {[%clk
0:01:32.8]} 36. a6 {[%clk 0:02:41.5]} 36... Bd4 {[%clk 0:01:23.6]} 37. Ba5
{[%clk 0:02:39.2]} 37... Rb8 {[%clk 0:01:18.6]} 38. Bd3 {[%clk 0:02:36.8]} 38...
Rb2 {[%clk 0:01:12.5]} 39. Be1 {[%clk 0:02:30.5]} 39... Ra2 {[%clk 0:01:02.1]}
40. Kf3 {[%clk 0:02:29]} 40... Kg7 {[%clk 0:01:00]} 41. Be2 {[%clk 0:02:23.9]}
41... Kf6 {[%clk 0:00:57.5]} 42. Bb4 {[%clk 0:02:21.7]} 42... Ba7 {[%clk
0:00:49.6]} 43. Bc3+ {[%clk 0:02:18.4]} 43... e5 {[%clk 0:00:47.1]} 44. Bb5
{[%clk 0:02:08.5]} 44... Rxf2+ {[%clk 0:00:43.7]} 45. Ke4 {[%clk 0:02:07.4]}
45... Rxh2 {[%clk 0:00:34.9]} 46. Bxe5+ {[%clk 0:02:04.7]} 46... Kg5 {[%clk
0:00:30.8]} 47. Bf4+ {[%clk 0:02:02.8]} 47... Kh5 {[%clk 0:00:26.4]} 48. g4+
{[%clk 0:02:01.3]} 48... Kxg4 {[%clk 0:00:24.5]} 49. Bxh2 {[%clk 0:02:00.9]}
49... f5+ {[%clk 0:00:24]} 50. Kd3 {[%clk 0:01:59.3]} 50... f4 {[%clk
0:00:22.6]} 51. Ke2 {[%clk 0:01:58.1]} 51... f3+ {[%clk 0:00:21.4]} 52. Kf1
{[%clk 0:01:57]} 52... Kh3 {[%clk 0:00:20.6]} 53. Bg1 {[%clk 0:01:55.7]} 53...
Bb8 {[%clk 0:00:18.2]} 54. a7 {[%clk 0:01:54.3]} 54... Bxa7 {[%clk 0:00:17.6]}
55. Bxa7 {[%clk 0:01:53.4]} 55... g5 {[%clk 0:00:17.5]} 56. Bd7+ {[%clk
0:01:50.9]} 56... g4 {[%clk 0:00:17.4]} 57. Kf2 {[%clk 0:01:49.2]} 57... h5
{[%clk 0:00:14.9]} 58. Bb8 {[%clk 0:01:47.8]} 58... Kh4 {[%clk 0:00:12.8]} 59.
Bg3+ {[%clk 0:01:45.9]} 59... Kh3 {[%clk 0:00:12.2]} 60. Bf4 {[%clk 0:01:39.6]}
60... h4 {[%clk 0:00:11.3]} 61. Ke3 {[%clk 0:01:34.7]} 61... Kg2 {[%clk
0:00:07.6]} 62. Bxg4 {[%clk 0:01:33]} 62... f2 {[%clk 0:00:07.5]} 63. Bf3+
{[%clk 0:01:29.8]} 63... Kg1 {[%clk 0:00:06.7]} 64. Be2 {[%clk 0:01:23.7]} 64...
f1=Q {[%clk 0:00:06.6]} 65. Bxf1 {[%clk 0:01:22.5]} 65... Kxf1 {[%clk
0:00:06.5]} 66. Kf3 {[%clk 0:01:21.8]} 66... Kg1 {[%clk 0:00:06]} 67. Kg4 {[%clk
0:01:16.5]} 67... h3 {[%clk 0:00:05.9]} 68. Be3+ {[%clk 0:01:12.2]} 68... Kh1
{[%clk 0:00:04.2]} 69. Ba7 {[%clk 0:01:04.3]} 69... h2 {[%clk 0:00:04.1]} 70.
Bb8 {[%clk 0:00:59.8]} 70... Kg2 {[%clk 0:00:04]} 71. Bxh2 {[%clk 0:00:55.9]}
1/2-1/2

[Event "Live Chess"]
[Site "Chess.com"]
[Date "2024.06.02"]
[Round "-"]
[White "ameetghasi100"]
[Black "Bradfield133"]
[Result "1-0"]
[WhiteElo "2792"]
[BlackElo "1870"]
[TimeControl "300"]
[EndTime "1:21:15 PDT"]
[Termination "ameetghasi100 won on time"]

1. c4 {[%clk 0:04:58.2]} 1... c5 {[%clk 0:04:55.6]} 2. d4 {[%clk 0:04:58.1]}
2... cxd4 {[%clk 0:04:53.5]} 3. Nf3 {[%clk 0:04:54.9]} 3... Nc6 {[%clk
0:04:45.5]} 4. Nxd4 {[%clk 0:04:51.8]} 4... g6 {[%clk 0:04:38.5]} 5. Nc3 {[%clk
0:04:48]} 5... Bg7 {[%clk 0:04:37.1]} 6. Be3 {[%clk 0:04:45.6]} 6... Nf6 {[%clk
0:04:32.8]} 7. h3 {[%clk 0:04:36.1]} 7... O-O {[%clk 0:04:29.3]} 8. Qd2 {[%clk
0:04:31.6]} 8... d5 {[%clk 0:04:23.7]} 9. Rd1 {[%clk 0:04:26.5]} 9... e6 {[%clk
0:03:54.5]} 10. g4 {[%clk 0:04:20.7]} 10... Ne5 {[%clk 0:03:19.8]} 11. b3 {[%clk
0:04:15.6]} 11... dxc4 {[%clk 0:03:03.2]} 12. f4 {[%clk 0:04:13.2]} 12... Nc6
{[%clk 0:02:46.2]} 13. Bg2 {[%clk 0:04:01.8]} 13... Nd5 {[%clk 0:02:32.9]} 14.
Nxd5 {[%clk 0:03:53]} 14... exd5 {[%clk 0:02:30.2]} 15. bxc4 {[%clk 0:03:52.4]}
15... Nxd4 {[%clk 0:02:21.7]} 16. Bxd4 {[%clk 0:03:51.1]} 16... Bxd4 {[%clk
0:02:19.5]} 17. Qxd4 {[%clk 0:03:48.2]} 17... Qa5+ {[%clk 0:02:18.2]} 18. Qd2
{[%clk 0:03:34.6]} 18... Qxd2+ {[%clk 0:02:14.7]} 19. Rxd2 {[%clk 0:03:34.5]}
19... dxc4 {[%clk 0:02:13.5]} 20. Kf2 {[%clk 0:03:33.9]} 20... Rb8 {[%clk
0:02:05.8]} 21. a4 {[%clk 0:03:31.8]} 21... Be6 {[%clk 0:01:58.5]} 22. Rb1
{[%clk 0:03:27.9]} 22... b6 {[%clk 0:01:54.8]} 23. Ke3 {[%clk 0:03:20.3]} 23...
Rfe8 {[%clk 0:01:45.3]} 24. Kf2 {[%clk 0:03:15.5]} 24... Red8 {[%clk 0:01:30.1]}
25. Rc2 {[%clk 0:03:14.1]} 25... Rbc8 {[%clk 0:01:23.6]} 26. Be4 {[%clk
0:02:54.5]} 26... f5 {[%clk 0:01:18.6]} 27. Bf3 {[%clk 0:02:53.1]} 27... fxg4
{[%clk 0:01:16.6]} 28. hxg4 {[%clk 0:02:53]} 28... Rd4 {[%clk 0:01:05.3]} 29. e3
{[%clk 0:02:46.5]} 29... Rd3 {[%clk 0:00:59.9]} 30. e4 {[%clk 0:02:35.5]} 30...
c3 {[%clk 0:00:45.7]} 31. f5 {[%clk 0:02:25.8]} 31... Bc4 {[%clk 0:00:34.5]} 32.
e5 {[%clk 0:01:51.5]} 32... gxf5 {[%clk 0:00:24.2]} 33. gxf5 {[%clk 0:01:49.9]}
33... Rxf3+ {[%clk 0:00:23.1]} 34. Kxf3 {[%clk 0:01:46.8]} 34... Bd3 {[%clk
0:00:22.2]} 35. Rbc1 {[%clk 0:01:46.3]} 35... Bxc2 {[%clk 0:00:21]} 36. Rxc2
{[%clk 0:01:46.2]} 36... Rc4 {[%clk 0:00:18]} 37. Ke3 {[%clk 0:01:41.8]} 37...
Kf7 {[%clk 0:00:15.5]} 38. Kd3 {[%clk 0:01:40.8]} 38... Rxa4 {[%clk 0:00:12.3]}
39. Rh2 {[%clk 0:01:36.6]} 39... Kg7 {[%clk 0:00:09.5]} 40. Rg2+ {[%clk
0:01:34.5]} 40... Kf7 {[%clk 0:00:08.6]} 41. Rg5 {[%clk 0:01:24.3]} 41... Rf4
{[%clk 0:00:04.4]} 42. Kxc3 {[%clk 0:01:22.7]} 42... a5 {[%clk 0:00:02.2]} 43.
Rh5 {[%clk 0:01:18.9]} 1-0

[Event "Live Chess"]
[Site "Chess.com"]
[Date "2024.06.02"]
[Round "-"]
[White "WeakOldFinished"]
[Black "gunslinger222"]
[Result "0-1"]
[WhiteElo "2151"]
[BlackElo "2264"]
[TimeControl "300"]
[EndTime "1:21:17 PDT"]
[Termination "gunslinger222 won by resignation"]

1. d4 {[%clk 0:04:57.6]} 1... Nf6 {[%clk 0:04:58.5]} 2. Nc3 {[%clk 0:04:56.7]}
2... d5 {[%clk 0:04:56.4]} 3. e4 {[%clk 0:04:56.2]} 3... e6 {[%clk 0:04:54.5]}
4. e5 {[%clk 0:04:54.3]} 4... Nfd7 {[%clk 0:04:53.6]} 5. Qh5 {[%clk 0:04:53.8]}
5... g6 {[%clk 0:04:42.3]} 6. Qg4 {[%clk 0:04:52.9]} 6... f5 {[%clk 0:04:37.4]}
7. exf6 {[%clk 0:04:44.4]} 7... Nxf6 {[%clk 0:04:36.3]} 8. Qh4 {[%clk
0:04:42.4]} 8... Be7 {[%clk 0:04:32.9]} 9. Bg5 {[%clk 0:04:38]} 9... O-O {[%clk
0:04:06.3]} 10. Bd3 {[%clk 0:04:27.5]} 10... c5 {[%clk 0:03:57.6]} 11. Nf3
{[%clk 0:04:21.7]} 11... c4 {[%clk 0:03:55.1]} 12. Be2 {[%clk 0:04:07]} 12...
Nc6 {[%clk 0:03:52.8]} 13. O-O-O {[%clk 0:04:05.9]} 13... b5 {[%clk 0:03:50.2]}
14. Ne5 {[%clk 0:04:03.8]} 14... Bd7 {[%clk 0:03:37.2]} 15. Qh6 {[%clk
0:03:55.7]} 15... Be8 {[%clk 0:03:30.2]} 16. h4 {[%clk 0:03:40.8]} 16... b4
{[%clk 0:03:28.6]} 17. Nb1 {[%clk 0:03:35.3]} 17... Nxe5 {[%clk 0:03:08.2]} 18.
dxe5 {[%clk 0:03:34.3]} 18... Ne4 {[%clk 0:03:05.8]} 19. Bxe7 {[%clk 0:03:27.4]}
19... Qxe7 {[%clk 0:03:05.7]} 20. f3 {[%clk 0:03:16.3]} 20... Nf2 {[%clk
0:03:03.2]} 21. h5 {[%clk 0:03:12.6]} 21... Nxh1 {[%clk 0:02:57.6]} 22. Rxh1
{[%clk 0:03:11.3]} 22... gxh5 {[%clk 0:02:51]} 23. f4 {[%clk 0:02:48.2]} 23...
Rf5 {[%clk 0:02:49.5]} 24. Bxh5 {[%clk 0:02:46]} 24... Bxh5 {[%clk 0:02:47.2]}
25. Rxh5 {[%clk 0:02:45.4]} 25... Rxh5 {[%clk 0:02:44.1]} 26. Qxh5 {[%clk
0:02:44.4]} 26... Qf7 {[%clk 0:02:40]} 27. g3 {[%clk 0:02:43.2]} 27... Qxh5
{[%clk 0:02:38.6]} 0-1

[Event "Live Chess"]
[Site "Chess.com"]
[Date "2024.06.02"]
[Round "-"]
[White "MaksymYurii"]
[Black "JohanKjeldahl"]
[Result "0-1"]
[WhiteElo "982"]
[BlackElo "1849"]
[TimeControl "300"]
[EndTime "1:21:26 PDT"]
[Termination "JohanKjeldahl won by resignation"]

1. e4 {[%clk 0:04:58.6]} 1... c5 {[%clk 0:04:57.9]} 2. Nf3 {[%clk 0:04:57.1]}
2... e6 {[%clk 0:04:56.8]} 3. d4 {[%clk 0:04:51.9]} 3... cxd4 {[%clk 0:04:55.6]}
4. Nxd4 {[%clk 0:04:50]} 4... Nc6 {[%clk 0:04:54.7]} 5. Nf3 {[%clk 0:04:48.2]}
5... Nf6 {[%clk 0:04:52]} 6. Bb5 {[%clk 0:04:47.1]} 6... Bc5 {[%clk 0:04:46.9]}
7. O-O {[%clk 0:04:44.5]} 7... O-O {[%clk 0:04:45.5]} 8. e5 {[%clk 0:04:43.1]}
8... Nd5 {[%clk 0:04:41]} 9. Be3 {[%clk 0:04:36.1]} 9... Bxe3 {[%clk 0:04:35.5]}
10. fxe3 {[%clk 0:04:34.7]} 10... Nxe3 {[%clk 0:04:34.5]} 11. Kh1 {[%clk
0:04:32.9]} 11... Nxd1 {[%clk 0:04:33.3]} 12. Rxd1 {[%clk 0:04:31.4]} 12... Qb6
{[%clk 0:04:30.3]} 13. Nc3 {[%clk 0:04:28.3]} 13... a6 {[%clk 0:04:27.5]} 14.
Bd3 {[%clk 0:04:26]} 14... Qxb2 {[%clk 0:04:22]} 15. Ne2 {[%clk 0:04:19.5]}
15... b5 {[%clk 0:04:19.1]} 16. Ng5 {[%clk 0:04:18]} 16... h6 {[%clk 0:04:16.8]}
17. Nh7 {[%clk 0:04:11.6]} 17... Qxe5 {[%clk 0:04:11]} 18. Nxf8 {[%clk
0:03:59.8]} 18... Kxf8 {[%clk 0:04:09.9]} 19. Ng3 {[%clk 0:03:41.6]} 19... Bb7
{[%clk 0:04:06.3]} 20. Re1 {[%clk 0:03:34.9]} 20... Qd4 {[%clk 0:04:01.1]} 21.
Red1 {[%clk 0:03:29.4]} 21... Qf6 {[%clk 0:03:52.6]} 22. Rf1 {[%clk 0:03:26.1]}
22... Qe7 {[%clk 0:03:50.1]} 23. Nh5 {[%clk 0:03:17.6]} 23... Qg5 {[%clk
0:03:45.2]} 24. Ng3 {[%clk 0:03:06.3]} 24... Nb4 {[%clk 0:03:41.4]} 25. Rad1
{[%clk 0:02:43.8]} 25... Rc8 {[%clk 0:03:33.8]} 26. Be4 {[%clk 0:02:41]} 26...
d5 {[%clk 0:03:31.4]} 27. Bf3 {[%clk 0:02:22.8]} 27... Nxc2 {[%clk 0:03:28.9]}
28. Rc1 {[%clk 0:02:08.5]} 28... Ne3 {[%clk 0:03:24.6]} 29. Rxc8+ {[%clk
0:02:06]} 29... Bxc8 {[%clk 0:03:21.7]} 30. Rc1 {[%clk 0:02:01.5]} 30... Bd7
{[%clk 0:03:15.1]} 31. Rc7 {[%clk 0:01:43.8]} 31... Ke7 {[%clk 0:03:13.5]} 32.
Ra7 {[%clk 0:01:32.2]} 32... Nc4 {[%clk 0:03:10.4]} 33. Rxa6 {[%clk 0:01:25.8]}
33... Qc1+ {[%clk 0:03:08.6]} 0-1

[Event "Live Chess"]
[Site "Chess.com"]
[Date "2024.06.02"]
[Round "-"]
[White "chessgoatpawel"]
[Black "SimonBoy1"]
[Result "1-0"]
[WhiteElo "2072"]
[BlackElo "1522"]
[TimeControl "300"]
[EndTime "1:21:52 PDT"]
[Termination "chessgoatpawel won by resignation"]

1. e4 {[%clk 0:04:58]} 1... c5 {[%clk 0:04:59.1]} 2. c4 {[%clk 0:04:57.2]} 2...
e6 {[%clk 0:04:58.8]} 3. Nc3 {[%clk 0:04:56.2]} 3... a6 {[%clk 0:04:58.1]} 4.
Nf3 {[%clk 0:04:55.8]} 4... b5 {[%clk 0:04:58]} 5. cxb5 {[%clk 0:04:53.8]} 5...
a5 {[%clk 0:04:57.9]} 6. d4 {[%clk 0:04:52.6]} 6... d6 {[%clk 0:04:56.7]} 7.
dxc5 {[%clk 0:04:50.6]} 7... d5 {[%clk 0:04:56.6]} 8. exd5 {[%clk 0:04:49.2]}
8... Bxc5 {[%clk 0:04:56.5]} 9. dxe6 {[%clk 0:04:44.1]} 9... Bb6 {[%clk
0:04:56.4]} 10. exf7+ {[%clk 0:04:41.4]} 10... Kxf7 {[%clk 0:04:55.4]} 11. Ng5+
{[%clk 0:04:40.4]} 11... Ke8 {[%clk 0:04:55.3]} 12. Qf3 {[%clk 0:04:37.9]} 12...
Ke7 {[%clk 0:04:54.3]} 1-0

[Event "Live Chess"]
[Site "Chess.com"]
[Date "2024.06.02"]
[Round "-"]
[White "stevochess11"]
[Black "MagnersCarlsberg2870"]
[Result "1-0"]
[WhiteElo "1694"]
[BlackElo "1822"]
[TimeControl "300"]
[EndTime "1:22:04 PDT"]
[Termination "stevochess11 won by checkmate"]

1. d4 {[%clk 0:04:57.8]} 1... Nf6 {[%clk 0:04:58.6]} 2. Nf3 {[%clk 0:04:56.9]}
2... b6 {[%clk 0:04:56.8]} 3. e3 {[%clk 0:04:55.6]} 3... Bb7 {[%clk 0:04:55.6]}
4. Bd3 {[%clk 0:04:55.5]} 4... d6 {[%clk 0:04:54.2]} 5. c4 {[%clk 0:04:55.4]}
5... g6 {[%clk 0:04:52.7]} 6. Nc3 {[%clk 0:04:54.1]} 6... Bg7 {[%clk 0:04:51.7]}
7. b3 {[%clk 0:04:53]} 7... O-O {[%clk 0:04:50.3]} 8. Bb2 {[%clk 0:04:52.9]}
8... c5 {[%clk 0:04:48.6]} 9. O-O {[%clk 0:04:52.8]} 9... Nbd7 {[%clk
0:04:44.4]} 10. d5 {[%clk 0:04:51.7]} 10... Re8 {[%clk 0:04:40.3]} 11. e4 {[%clk
0:04:50.3]} 11... e5 {[%clk 0:04:38.4]} 12. Bc1 {[%clk 0:04:49.1]} 12... Nh5
{[%clk 0:04:35.7]} 13. Be2 {[%clk 0:04:45.4]} 13... Nf4 {[%clk 0:04:27.5]} 14.
Bxf4 {[%clk 0:04:43.9]} 14... exf4 {[%clk 0:04:26.6]} 15. Rc1 {[%clk 0:04:42.9]}
15... Ne5 {[%clk 0:04:21.3]} 16. Nb1 {[%clk 0:04:40.5]} 16... Bc8 {[%clk
0:04:15.5]} 17. Nbd2 {[%clk 0:04:37.3]} 17... f5 {[%clk 0:04:07.1]} 18. Nxe5
{[%clk 0:04:35.3]} 18... Bxe5 {[%clk 0:04:02.4]} 19. f3 {[%clk 0:04:32.3]} 19...
fxe4 {[%clk 0:03:59.1]} 20. fxe4 {[%clk 0:04:27.1]} 20... Bd4+ {[%clk
0:03:55.9]} 21. Kh1 {[%clk 0:04:25.6]} 21... Qh4 {[%clk 0:03:44.7]} 22. Nf3
{[%clk 0:04:23.8]} 22... Qh5 {[%clk 0:03:39.4]} 23. Nxd4 {[%clk 0:04:22]} 23...
Qh6 {[%clk 0:03:34.6]} 24. Nf3 {[%clk 0:04:15.3]} 24... g5 {[%clk 0:03:33.3]}
25. Rc3 {[%clk 0:03:52.9]} 25... g4 {[%clk 0:03:28.5]} 26. g3 {[%clk 0:03:35.5]}
26... gxf3 {[%clk 0:03:26.3]} 27. Rcxf3 {[%clk 0:03:33.9]} 27... Rxe4 {[%clk
0:03:24.2]} 28. Rxf4 {[%clk 0:03:29.5]} 28... Rxf4 {[%clk 0:03:10]} 29. Rxf4
{[%clk 0:03:28.1]} 29... Bh3 {[%clk 0:03:04.7]} 30. Bg4 {[%clk 0:03:23.9]} 30...
Re8 {[%clk 0:02:59.5]} 31. a3 {[%clk 0:02:50.3]} 31... Kh8 {[%clk 0:02:42.1]}
32. Qa1+ {[%clk 0:02:48]} 32... Kg8 {[%clk 0:02:40.4]} 33. Qc3 {[%clk
0:02:36.9]} 33... Rf8 {[%clk 0:02:18.3]} 34. Rxf8+ {[%clk 0:02:32]} 34... Kxf8
{[%clk 0:02:17.4]} 35. Qh8+ {[%clk 0:02:17]} 35... Ke7 {[%clk 0:02:16.3]} 36.
Bxh3 {[%clk 0:02:11.2]} 36... Qxh3 {[%clk 0:02:11.3]} 37. Qg7+ {[%clk
0:02:10.3]} 37... Kd8 {[%clk 0:02:04.5]} 38. Qf8+ {[%clk 0:02:06.3]} 38... Kc7
{[%clk 0:02:03.4]} 39. Qf7+ {[%clk 0:02:00.6]} 39... Kb8 {[%clk 0:01:59]} 40.
Qf8+ {[%clk 0:01:57.7]} 40... Kb7 {[%clk 0:01:56.1]} 41. Qf7+ {[%clk 0:01:55.4]}
41... Ka6 {[%clk 0:01:54.9]} 42. b4 {[%clk 0:01:48.8]} 42... Qg4 {[%clk
0:01:46.2]} 43. b5+ {[%clk 0:01:45.1]} 43... Ka5 {[%clk 0:01:45.1]} 44. Qxa7#
{[%clk 0:01:43.4]} 1-0